[Event "Late-Titled-Tuesday-Blitz-February-13-2024"]
[Site "Chess.com"]
[Date "2024.02.13"]
[Round "2"]
[White "ckgchess"]
[Black "prime-morty"]
[Result "1-0"]
[WhiteElo "2864"]
[BlackElo "2563"]
[TimeControl "180+1"]
[EndTime "14:14:19 PST"]
[Termination "ckgchess won by resignation"]

1. e4 {[%clk 0:03:00.9]} 1... d6 {[%clk 0:02:52.8]} 2. d4 {[%clk 0:02:59.4]}
2... Nf6 {[%clk 0:02:50.2]} 3. Nc3 {[%clk 0:02:59.4]} 3... e5 {[%clk 0:02:50.7]}
4. Nf3 {[%clk 0:02:59.5]} 4... Nbd7 {[%clk 0:02:48.6]} 5. Rg1 {[%clk 0:02:59.8]}
5... g6 {[%clk 0:02:42.1]} 6. g4 {[%clk 0:02:59.8]} 6... Bg7 {[%clk 0:02:40.5]}
7. g5 {[%clk 0:02:59.9]} 7... Nh5 {[%clk 0:02:39]} 8. Be3 {[%clk 0:02:59.6]}
8... c6 {[%clk 0:02:24.5]} 9. Qd2 {[%clk 0:02:59.7]} 9... b5 {[%clk 0:02:22.3]}
10. O-O-O {[%clk 0:02:29.7]} 10... b4 {[%clk 0:02:06.2]} 11. Ne2 {[%clk
0:02:29.1]} 11... a5 {[%clk 0:01:59.1]} 12. dxe5 {[%clk 0:02:20.9]} 12... dxe5
{[%clk 0:01:58.1]} 13. Bh3 {[%clk 0:02:18.5]} 13... Qc7 {[%clk 0:01:48.4]} 14.
Qd6 {[%clk 0:02:05]} 14... Qb7 {[%clk 0:01:24.2]} 15. Bc5 {[%clk 0:01:22.5]}
15... Bf8 {[%clk 0:01:14.7]} 16. Bxd7+ {[%clk 0:01:22.4]} 16... Qxd7 {[%clk
0:01:14.8]} 17. Qxe5+ {[%clk 0:01:22.6]} 17... Qe6 {[%clk 0:01:14.8]} 18. Qxh8
{[%clk 0:01:21.5]} 1-0

[Event "Late-Titled-Tuesday-Blitz-February-13-2024"]
[Site "Chess.com"]
[Date "2024.02.13"]
[Round "2"]
[White "Noki102"]
[Black "CaspiIsrael"]
[Result "0-1"]
[WhiteElo "2539"]
[BlackElo "2817"]
[TimeControl "180+1"]
[EndTime "14:14:36 PST"]
[Termination "CaspiIsrael won by resignation"]

1. d4 {[%clk 0:03:00.9]} 1... f5 {[%clk 0:02:59.8]} 2. Nf3 {[%clk 0:03:01.8]}
2... Nf6 {[%clk 0:03:00.1]} 3. Bf4 {[%clk 0:03:01.3]} 3... g6 {[%clk 0:03:00.2]}
4. e3 {[%clk 0:03:01.7]} 4... Bg7 {[%clk 0:03:00.7]} 5. Bc4 {[%clk 0:03:01.7]}
5... d6 {[%clk 0:02:58.8]} 6. O-O {[%clk 0:02:57.3]} 6... e6 {[%clk 0:02:58.2]}
7. a4 {[%clk 0:02:50.7]} 7... Qe7 {[%clk 0:02:56.7]} 8. Nbd2 {[%clk 0:02:47.3]}
8... Nc6 {[%clk 0:02:54.6]} 9. Re1 {[%clk 0:02:44.6]} 9... e5 {[%clk 0:02:53.8]}
10. dxe5 {[%clk 0:02:29.4]} 10... dxe5 {[%clk 0:02:53.4]} 11. e4 {[%clk
0:02:22.4]} 11... fxe4 {[%clk 0:02:49.6]} 12. Nxe4 {[%clk 0:02:20.2]} 12... Nxe4
{[%clk 0:02:45]} 13. Rxe4 {[%clk 0:02:19.3]} 13... Bf5 {[%clk 0:02:45.6]} 14.
Re2 {[%clk 0:01:55.5]} 14... Rd8 {[%clk 0:02:26]} 15. Qe1 {[%clk 0:01:53.8]}
15... e4 {[%clk 0:02:24.7]} 16. c3 {[%clk 0:01:27.5]} 16... Kd7 {[%clk
0:02:20.6]} 17. Ng5 {[%clk 0:01:23.8]} 17... Rhe8 {[%clk 0:02:16.8]} 18. Rd1+
{[%clk 0:01:16.4]} 18... Kc8 {[%clk 0:02:16.4]} 19. Rxd8+ {[%clk 0:01:17.3]}
19... Kxd8 {[%clk 0:02:01.6]} 20. f3 {[%clk 0:01:16.6]} 20... Qc5+ {[%clk
0:02:00.5]} 21. Kh1 {[%clk 0:01:11]} 21... Qxc4 {[%clk 0:01:58.4]} 22. fxe4
{[%clk 0:01:09]} 22... Bd7 {[%clk 0:01:55.4]} 23. e5 {[%clk 0:01:06.6]} 23...
Qxf4 {[%clk 0:01:53.6]} 24. e6 {[%clk 0:00:57.6]} 24... Qxg5 {[%clk 0:01:44]}
25. exd7 {[%clk 0:00:56.9]} 25... Rxe2 {[%clk 0:01:43.3]} 26. Qxe2 {[%clk
0:00:57.4]} 26... Qc1+ {[%clk 0:01:42.9]} 0-1

[Event "Late-Titled-Tuesday-Blitz-February-13-2024"]
[Site "Chess.com"]
[Date "2024.02.13"]
[Round "2"]
[White "alexrustemov"]
[Black "topce"]
[Result "1-0"]
[WhiteElo "2824"]
[BlackElo "2390"]
[TimeControl "180+1"]
[EndTime "14:14:42 PST"]
[Termination "alexrustemov won by checkmate"]

1. d4 {[%clk 0:02:53.8]} 1... e6 {[%clk 0:02:59.2]} 2. c4 {[%clk 0:02:53.5]}
2... Nf6 {[%clk 0:02:58.5]} 3. Nf3 {[%clk 0:02:54]} 3... c5 {[%clk 0:02:58.3]}
4. d5 {[%clk 0:02:53.4]} 4... exd5 {[%clk 0:02:58.9]} 5. cxd5 {[%clk 0:02:54.3]}
5... d6 {[%clk 0:02:59.3]} 6. Nc3 {[%clk 0:02:55.1]} 6... g6 {[%clk 0:02:59.5]}
7. h3 {[%clk 0:02:55.8]} 7... Bg7 {[%clk 0:03:00]} 8. e4 {[%clk 0:02:56.4]} 8...
O-O {[%clk 0:03:00.6]} 9. Bd3 {[%clk 0:02:57]} 9... b5 {[%clk 0:02:59.9]} 10.
O-O {[%clk 0:02:48.2]} 10... b4 {[%clk 0:02:59.5]} 11. Nb1 {[%clk 0:02:45]}
11... a5 {[%clk 0:02:57.4]} 12. Nbd2 {[%clk 0:02:43]} 12... Nbd7 {[%clk
0:02:53]} 13. Nc4 {[%clk 0:02:42]} 13... Nb6 {[%clk 0:02:53.1]} 14. Nxb6 {[%clk
0:02:37.8]} 14... Qxb6 {[%clk 0:02:54]} 15. Nd2 {[%clk 0:02:37.2]} 15... Ba6
{[%clk 0:02:52.7]} 16. Bxa6 {[%clk 0:02:36.3]} 16... Qxa6 {[%clk 0:02:52.2]} 17.
Qc2 {[%clk 0:02:36.1]} 17... Rfe8 {[%clk 0:02:48.6]} 18. Rb1 {[%clk 0:02:29.1]}
18... Ra7 {[%clk 0:02:46.2]} 19. f3 {[%clk 0:02:24.1]} 19... Nxd5 {[%clk
0:02:33]} 20. exd5 {[%clk 0:02:17.2]} 20... Bd4+ {[%clk 0:02:32.2]} 21. Kh2
{[%clk 0:02:15]} 21... Qxf1 {[%clk 0:02:31]} 22. Nxf1 {[%clk 0:02:12.8]} 22...
Re1 {[%clk 0:02:15.8]} 23. Bf4 {[%clk 0:02:06]} 23... Rae7 {[%clk 0:01:56]} 24.
Bxd6 {[%clk 0:02:00.3]} 24... Rxb1 {[%clk 0:01:51.4]} 25. Qxb1 {[%clk
0:01:58.8]} 25... Re2 {[%clk 0:01:51.9]} 26. b3 {[%clk 0:01:50]} 26... Rxg2+
{[%clk 0:01:45.8]} 27. Kxg2 {[%clk 0:01:49.5]} 27... f5 {[%clk 0:01:45.8]} 28.
Qd3 {[%clk 0:01:46.6]} 28... g5 {[%clk 0:01:46.7]} 29. Qb5 {[%clk 0:01:42.4]}
29... f4 {[%clk 0:01:47.6]} 30. Qe8+ {[%clk 0:01:39]} 30... Kg7 {[%clk
0:01:35.9]} 31. Be5+ {[%clk 0:01:29.1]} 31... Bxe5 {[%clk 0:01:36.8]} 32. Qxe5+
{[%clk 0:01:28.5]} 32... Kf7 {[%clk 0:01:35.5]} 33. d6 {[%clk 0:01:28.2]} 33...
g4 {[%clk 0:01:36.4]} 34. hxg4 {[%clk 0:01:27.9]} 34... h5 {[%clk 0:01:35.8]}
35. d7 {[%clk 0:01:27.9]} 35... hxg4 {[%clk 0:01:35.1]} 36. d8=Q {[%clk
0:01:28]} 36... gxf3+ {[%clk 0:01:35.9]} 37. Kxf3 {[%clk 0:01:28.2]} 37... c4
{[%clk 0:01:35.6]} 38. Qd7+ {[%clk 0:01:28]} 38... Kf8 {[%clk 0:01:33.7]} 39.
Qeg7# {[%clk 0:01:27.2]} 1-0

[Event "Late-Titled-Tuesday-Blitz-February-13-2024"]
[Site "Chess.com"]
[Date "2024.02.13"]
[Round "2"]
[White "Hirna2005"]
[Black "Romadk"]
[Result "0-1"]
[WhiteElo "2309"]
[BlackElo "2528"]
[TimeControl "180+1"]
[EndTime "14:14:43 PST"]
[Termination "Romadk won by resignation"]

1. e4 {[%clk 0:03:00.9]} 1... Nf6 {[%clk 0:03:00.7]} 2. e5 {[%clk 0:03:00.7]}
2... Nd5 {[%clk 0:03:01.1]} 3. Nf3 {[%clk 0:03:00.8]} 3... d6 {[%clk 0:03:01.4]}
4. d4 {[%clk 0:03:01.2]} 4... g6 {[%clk 0:03:01.2]} 5. Be2 {[%clk 0:03:00.8]}
5... Bg7 {[%clk 0:03:01.3]} 6. O-O {[%clk 0:03:00]} 6... O-O {[%clk 0:03:01.7]}
7. h3 {[%clk 0:02:59.2]} 7... Nc6 {[%clk 0:03:01.1]} 8. c4 {[%clk 0:02:55.1]}
8... Nb6 {[%clk 0:03:01.1]} 9. exd6 {[%clk 0:02:55.3]} 9... cxd6 {[%clk
0:03:02]} 10. Nc3 {[%clk 0:02:53.7]} 10... Bf5 {[%clk 0:03:02.7]} 11. Be3 {[%clk
0:02:52.2]} 11... d5 {[%clk 0:03:03.3]} 12. c5 {[%clk 0:02:51.8]} 12... Nc4
{[%clk 0:03:03.7]} 13. b3 {[%clk 0:02:37]} 13... Nxe3 {[%clk 0:02:59.3]} 14.
fxe3 {[%clk 0:02:37.2]} 14... Bh6 {[%clk 0:02:56.6]} 15. Qd2 {[%clk 0:02:30.5]}
15... e5 {[%clk 0:02:54.5]} 16. g4 {[%clk 0:02:24]} 16... exd4 {[%clk
0:02:50.3]} 17. Nxd4 {[%clk 0:02:20.2]} 17... Nxd4 {[%clk 0:02:46.5]} 18. Qxd4
{[%clk 0:02:19.4]} 18... Re8 {[%clk 0:02:38]} 19. Nxd5 {[%clk 0:02:12]} 19...
Bxe3+ {[%clk 0:02:20.6]} 20. Qxe3 {[%clk 0:02:09.2]} 20... Rxe3 {[%clk
0:02:18.9]} 21. Nxe3 {[%clk 0:02:09.2]} 21... Qd4 {[%clk 0:02:12.3]} 22. gxf5
{[%clk 0:01:51.3]} 22... Qxe3+ {[%clk 0:02:12.1]} 23. Rf2 {[%clk 0:01:51.6]}
23... Qxc5 {[%clk 0:01:59.5]} 24. Bc4 {[%clk 0:01:32.9]} 24... Rd8 {[%clk
0:01:53.7]} 25. fxg6 {[%clk 0:01:26.4]} 25... hxg6 {[%clk 0:01:52.6]} 26. Bxf7+
{[%clk 0:01:10.2]} 26... Kg7 {[%clk 0:01:52.8]} 27. Bc4 {[%clk 0:01:09]} 27...
b5 {[%clk 0:01:47.1]} 28. Bf1 {[%clk 0:00:52.9]} 28... Rf8 {[%clk 0:01:44.3]}
0-1

[Event "Late-Titled-Tuesday-Blitz-February-13-2024"]
[Site "Chess.com"]
[Date "2024.02.13"]
[Round "2"]
[White "pinguino120"]
[Black "KacperKacprzak"]
[Result "0-1"]
[WhiteElo "2337"]
[BlackElo "2718"]
[TimeControl "180+1"]
[EndTime "14:14:54 PST"]
[Termination "KacperKacprzak won by resignation"]

1. d4 {[%clk 0:03:00.9]} 1... e6 {[%clk 0:02:55]} 2. c4 {[%clk 0:02:57.8]} 2...
d5 {[%clk 0:02:52.3]} 3. Nf3 {[%clk 0:02:57.2]} 3... c6 {[%clk 0:02:50.7]} 4. g3
{[%clk 0:02:49.3]} 4... dxc4 {[%clk 0:02:49.6]} 5. Bg2 {[%clk 0:02:49.6]} 5...
b5 {[%clk 0:02:49.5]} 6. O-O {[%clk 0:02:49.2]} 6... Bb7 {[%clk 0:02:50.1]} 7.
a4 {[%clk 0:02:48.3]} 7... a6 {[%clk 0:02:50.2]} 8. Ne5 {[%clk 0:02:39.4]} 8...
Nf6 {[%clk 0:02:49.3]} 9. e4 {[%clk 0:02:34.4]} 9... Nbd7 {[%clk 0:02:46.1]} 10.
f4 {[%clk 0:02:33.9]} 10... Be7 {[%clk 0:02:45]} 11. Be3 {[%clk 0:02:21.4]}
11... O-O {[%clk 0:02:44.3]} 12. Nd2 {[%clk 0:02:19.9]} 12... c5 {[%clk
0:02:36]} 13. b3 {[%clk 0:02:00.4]} 13... c3 {[%clk 0:02:17]} 14. Nb1 {[%clk
0:01:58.5]} 14... Nxe4 {[%clk 0:02:12.3]} 15. Nxd7 {[%clk 0:01:42.7]} 15... Qxd7
{[%clk 0:02:11.7]} 16. Bxe4 {[%clk 0:01:39.7]} 16... Bxe4 {[%clk 0:02:11.2]} 17.
Nxc3 {[%clk 0:01:40]} 17... Bb7 {[%clk 0:01:56.2]} 18. dxc5 {[%clk 0:01:28.6]}
18... Qc6 {[%clk 0:01:56.1]} 19. Qe2 {[%clk 0:01:28.5]} 19... Qh1+ {[%clk
0:01:51.3]} 20. Kf2 {[%clk 0:01:27.4]} 20... Qxh2+ {[%clk 0:01:52.2]} 21. Ke1
{[%clk 0:01:25.9]} 21... Qxg3+ {[%clk 0:01:52.9]} 22. Kd2 {[%clk 0:01:21.9]}
22... Rfd8+ {[%clk 0:01:52.7]} 23. Kc2 {[%clk 0:01:22.2]} 23... Bf6 {[%clk
0:01:50.9]} 24. axb5 {[%clk 0:01:14.6]} 24... axb5 {[%clk 0:01:47.5]} 25. Rxa8
{[%clk 0:01:13.9]} 25... Bxa8 {[%clk 0:01:46.8]} 26. Rg1 {[%clk 0:01:09.3]}
26... Qh3 {[%clk 0:01:46]} 27. Nxb5 {[%clk 0:01:04.7]} 27... Be4+ {[%clk
0:01:44.6]} 28. Kc1 {[%clk 0:01:04.2]} 28... Bd3 {[%clk 0:01:33]} 0-1

[Event "Late-Titled-Tuesday-Blitz-February-13-2024"]
[Site "Chess.com"]
[Date "2024.02.13"]
[Round "2"]
[White "Dinamo3"]
[Black "Mops_2004"]
[Result "0-1"]
[WhiteElo "2533"]
[BlackElo "2785"]
[TimeControl "180+1"]
[EndTime "14:15:02 PST"]
[Termination "Mops_2004 won by resignation"]

1. c4 {[%clk 0:03:00.9]} 1... g6 {[%clk 0:02:59.3]} 2. Nc3 {[%clk 0:03:00.5]}
2... Bg7 {[%clk 0:02:59.9]} 3. g3 {[%clk 0:03:01.1]} 3... d6 {[%clk 0:02:59.1]}
4. Bg2 {[%clk 0:03:01.3]} 4... Nf6 {[%clk 0:02:57.5]} 5. d3 {[%clk 0:03:01.8]}
5... e5 {[%clk 0:02:55.4]} 6. e4 {[%clk 0:03:01.7]} 6... Nc6 {[%clk 0:02:52.5]}
7. Nge2 {[%clk 0:03:01.9]} 7... Nd7 {[%clk 0:02:52.5]} 8. O-O {[%clk 0:03:01.4]}
8... Nc5 {[%clk 0:02:52.7]} 9. Be3 {[%clk 0:02:56.4]} 9... Ne6 {[%clk
0:02:52.5]} 10. f4 {[%clk 0:02:55.6]} 10... Ned4 {[%clk 0:02:50.7]} 11. Nd5
{[%clk 0:02:50.6]} 11... Bg4 {[%clk 0:02:47.1]} 12. Ndc3 {[%clk 0:02:32.2]}
12... exf4 {[%clk 0:02:42.7]} 13. gxf4 {[%clk 0:02:27]} 13... Nxe2+ {[%clk
0:02:42.7]} 14. Nxe2 {[%clk 0:02:27.1]} 14... Bxb2 {[%clk 0:02:41.6]} 15. Rb1
{[%clk 0:02:27.4]} 15... Bd4 {[%clk 0:02:40.9]} 16. Qd2 {[%clk 0:02:07.8]} 16...
Bxe2 {[%clk 0:02:40.8]} 17. Qxe2 {[%clk 0:02:07.9]} 17... Rb8 {[%clk 0:02:27]}
18. e5 {[%clk 0:02:08]} 18... O-O {[%clk 0:02:19.4]} 19. Bxc6 {[%clk 0:01:31.1]}
19... Bxe3+ {[%clk 0:02:18.8]} 20. Qxe3 {[%clk 0:01:32]} 20... bxc6 {[%clk
0:02:19.3]} 21. d4 {[%clk 0:01:03.4]} 21... Qh4 {[%clk 0:02:08.6]} 22. Qg3
{[%clk 0:00:58.5]} 22... Qxg3+ {[%clk 0:01:56.3]} 23. hxg3 {[%clk 0:00:59.4]}
23... Rb6 {[%clk 0:01:56.4]} 24. Rb3 {[%clk 0:00:15.5]} 24... Rxb3 {[%clk
0:01:52.6]} 25. Rb1 {[%clk 0:00:16.1]} 25... Rxb1+ {[%clk 0:01:51.3]} 0-1

[Event "Late-Titled-Tuesday-Blitz-February-13-2024"]
[Site "Chess.com"]
[Date "2024.02.13"]
[Round "2"]
[White "Sleepless_Knightmare"]
[Black "hurricane7791"]
[Result "0-1"]
[WhiteElo "2286"]
[BlackElo "2710"]
[TimeControl "180+1"]
[EndTime "14:15:02 PST"]
[Termination "hurricane7791 won by resignation"]

1. e4 {[%clk 0:03:00.9]} 1... c5 {[%clk 0:02:59]} 2. Nf3 {[%clk 0:02:59.8]} 2...
d6 {[%clk 0:02:59.8]} 3. d4 {[%clk 0:03:00.1]} 3... cxd4 {[%clk 0:03:00.7]} 4.
Nxd4 {[%clk 0:03:00.4]} 4... Nf6 {[%clk 0:03:01.3]} 5. Nc3 {[%clk 0:03:00.8]}
5... a6 {[%clk 0:03:01.9]} 6. Bg5 {[%clk 0:03:01.1]} 6... Nbd7 {[%clk
0:03:00.1]} 7. Bc4 {[%clk 0:03:00.2]} 7... Qb6 {[%clk 0:02:59.8]} 8. Bb3 {[%clk
0:02:59.2]} 8... e6 {[%clk 0:02:59.9]} 9. Qd2 {[%clk 0:02:57.5]} 9... Be7 {[%clk
0:03:00.2]} 10. f3 {[%clk 0:02:55]} 10... Nc5 {[%clk 0:02:59.5]} 11. Be3 {[%clk
0:02:52.6]} 11... Qc7 {[%clk 0:02:59.7]} 12. O-O-O {[%clk 0:02:51.2]} 12... b5
{[%clk 0:03:00]} 13. Kb1 {[%clk 0:02:50.7]} 13... Bd7 {[%clk 0:02:59.4]} 14. g4
{[%clk 0:02:47.9]} 14... b4 {[%clk 0:02:56.8]} 15. Nce2 {[%clk 0:02:43.4]} 15...
a5 {[%clk 0:02:47.9]} 16. g5 {[%clk 0:02:43.2]} 16... Nh5 {[%clk 0:02:46.6]} 17.
Ng3 {[%clk 0:02:43.1]} 17... Nxg3 {[%clk 0:02:46.7]} 18. hxg3 {[%clk 0:02:42.6]}
18... a4 {[%clk 0:02:46.9]} 19. Bd5 {[%clk 0:02:42.6]} 19... exd5 {[%clk
0:02:43.5]} 20. exd5 {[%clk 0:02:42.6]} 20... b3 {[%clk 0:02:42.3]} 21. cxb3
{[%clk 0:02:40]} 21... axb3 {[%clk 0:02:43.2]} 22. a3 {[%clk 0:02:39.9]} 22...
Rc8 {[%clk 0:02:42]} 23. Rc1 {[%clk 0:02:37.5]} 23... Qb7 {[%clk 0:02:39.4]} 24.
g4 {[%clk 0:02:35.4]} 24... Qxd5 {[%clk 0:02:32.9]} 25. Rc3 {[%clk 0:02:15.2]}
25... Na4 {[%clk 0:02:21.9]} 26. Rxc8+ {[%clk 0:02:10.8]} 26... Bxc8 {[%clk
0:02:22.8]} 27. Rd1 {[%clk 0:02:05.4]} 27... O-O {[%clk 0:02:08.6]} 28. Qh2
{[%clk 0:01:55]} 28... Bxg5 {[%clk 0:02:04.4]} 29. Rh1 {[%clk 0:01:52.4]} 29...
h6 {[%clk 0:02:03.9]} 30. f4 {[%clk 0:01:50]} 30... Bf6 {[%clk 0:02:02.8]} 31.
g5 {[%clk 0:01:38.2]} 31... Bxd4 {[%clk 0:01:59.3]} 32. Bxd4 {[%clk 0:01:38.4]}
32... Bf5+ {[%clk 0:01:58.9]} 33. Ka1 {[%clk 0:01:37.1]} 33... Qxd4 {[%clk
0:01:59.3]} 34. gxh6 {[%clk 0:01:36.6]} 34... g6 {[%clk 0:01:52.6]} 35. h7+
{[%clk 0:01:36.4]} 35... Kh8 {[%clk 0:01:52.2]} 36. Rc1 {[%clk 0:01:25.8]} 36...
Bc2 {[%clk 0:01:50.7]} 37. Rxc2 {[%clk 0:01:25.7]} 37... bxc2 {[%clk 0:01:51]}
38. Qxc2 {[%clk 0:01:26.1]} 38... Rb8 {[%clk 0:01:49.9]} 39. f5 {[%clk 0:01:16]}
39... Nxb2 {[%clk 0:01:43.1]} 40. Qc3 {[%clk 0:01:09.7]} 40... Qxc3 {[%clk
0:01:40.4]} 0-1

[Event "Late-Titled-Tuesday-Blitz-February-13-2024"]
[Site "Chess.com"]
[Date "2024.02.13"]
[Round "2"]
[White "dedpihto_v_kozhanom_palto"]
[Black "CFalcons8"]
[Result "0-1"]
[WhiteElo "2686"]
[BlackElo "2431"]
[TimeControl "180+1"]
[EndTime "14:15:08 PST"]
[Termination "CFalcons8 won by resignation"]

1. c4 {[%clk 0:03:00.9]} 1... e6 {[%clk 0:02:58.4]} 2. Nc3 {[%clk 0:03:01.5]}
2... d5 {[%clk 0:02:57.5]} 3. cxd5 {[%clk 0:03:02.4]} 3... exd5 {[%clk
0:02:58.4]} 4. d4 {[%clk 0:03:03.1]} 4... Nf6 {[%clk 0:02:58.7]} 5. Nf3 {[%clk
0:03:03.8]} 5... Bb4 {[%clk 0:02:58.4]} 6. Bg5 {[%clk 0:03:03.9]} 6... O-O
{[%clk 0:02:57.9]} 7. e3 {[%clk 0:03:03.9]} 7... Be6 {[%clk 0:02:58.1]} 8. Bd3
{[%clk 0:03:04.1]} 8... c5 {[%clk 0:02:58.7]} 9. dxc5 {[%clk 0:03:03.6]} 9...
Nbd7 {[%clk 0:02:58.2]} 10. O-O {[%clk 0:03:01.2]} 10... Nxc5 {[%clk 0:02:58.8]}
11. Bc2 {[%clk 0:03:01.4]} 11... Bxc3 {[%clk 0:02:55.5]} 12. bxc3 {[%clk
0:03:02.3]} 12... h6 {[%clk 0:02:55.6]} 13. Bh4 {[%clk 0:03:02.1]} 13... Rc8
{[%clk 0:02:48.3]} 14. Rb1 {[%clk 0:03:00.5]} 14... b6 {[%clk 0:02:47.1]} 15.
Nd4 {[%clk 0:03:00.8]} 15... g5 {[%clk 0:02:44.9]} 16. Bg3 {[%clk 0:02:59.6]}
16... Nce4 {[%clk 0:02:41.9]} 17. Bxe4 {[%clk 0:02:58.4]} 17... Nxe4 {[%clk
0:02:42.8]} 18. Nxe6 {[%clk 0:02:55.1]} 18... fxe6 {[%clk 0:02:41.7]} 19. Qh5
{[%clk 0:02:41.5]} 19... Qf6 {[%clk 0:02:37.8]} 20. Rbc1 {[%clk 0:02:37.2]}
20... Nxc3 {[%clk 0:02:31.9]} 21. a3 {[%clk 0:02:32.8]} 21... Ne4 {[%clk
0:02:26.3]} 22. Qe2 {[%clk 0:02:25.8]} 22... Nc3 {[%clk 0:02:05]} 23. Qd3 {[%clk
0:02:23]} 23... Rc4 {[%clk 0:02:05.1]} 24. Rc2 {[%clk 0:02:19.9]} 24... Rfc8
{[%clk 0:02:04.2]} 25. Rfc1 {[%clk 0:02:20.5]} 25... Ne2+ {[%clk 0:01:53.9]} 26.
Qxe2 {[%clk 0:02:13]} 26... Rxc2 {[%clk 0:01:54.1]} 27. Rxc2 {[%clk 0:02:10.6]}
27... Qa1+ {[%clk 0:01:54.1]} 28. Qf1 {[%clk 0:02:10]} 28... Qxf1+ {[%clk
0:01:54.5]} 29. Kxf1 {[%clk 0:02:10.9]} 29... Rxc2 {[%clk 0:01:54.8]} 30. h4
{[%clk 0:02:11.1]} 30... Ra2 {[%clk 0:01:54.2]} 31. hxg5 {[%clk 0:02:11.1]}
31... hxg5 {[%clk 0:01:55.1]} 32. Bd6 {[%clk 0:02:11.9]} 32... Kf7 {[%clk
0:01:54.3]} 33. g4 {[%clk 0:02:12.6]} 33... Ke8 {[%clk 0:01:53.5]} 34. f4 {[%clk
0:02:11.7]} 34... gxf4 {[%clk 0:01:51.4]} 35. exf4 {[%clk 0:02:12.6]} 35... Kd7
{[%clk 0:01:52.2]} 36. Bf8 {[%clk 0:02:10.5]} 36... a5 {[%clk 0:01:52]} 37. g5
{[%clk 0:02:10.5]} 37... Ke8 {[%clk 0:01:51.5]} 38. Bd6 {[%clk 0:02:10.9]} 38...
Kf7 {[%clk 0:01:51.9]} 39. Ke1 {[%clk 0:02:10.6]} 39... b5 {[%clk 0:01:52.1]}
40. Kd1 {[%clk 0:02:10.9]} 40... Kg6 {[%clk 0:01:50.4]} 41. Kc1 {[%clk
0:02:09.2]} 41... Rf2 {[%clk 0:01:49.4]} 42. Kd1 {[%clk 0:02:08.8]} 42... Kf5
{[%clk 0:01:49.4]} 43. Ke1 {[%clk 0:02:09.1]} 43... Ra2 {[%clk 0:01:49.1]} 44.
Kd1 {[%clk 0:02:09.6]} 44... Rh2 {[%clk 0:01:46.2]} 45. Kc1 {[%clk 0:02:08.8]}
45... d4 {[%clk 0:01:44.9]} 46. Kd1 {[%clk 0:02:08.1]} 46... Rg2 {[%clk
0:01:44.7]} 47. Ke1 {[%clk 0:02:07.6]} 47... Ke4 {[%clk 0:01:44.4]} 48. Kf1
{[%clk 0:02:06.8]} 48... Kf3 {[%clk 0:01:43.7]} 49. Ke1 {[%clk 0:02:02.8]} 49...
d3 {[%clk 0:01:43.6]} 50. Kd1 {[%clk 0:01:59.4]} 50... Ke4 {[%clk 0:01:37.1]}
51. Bc7 {[%clk 0:01:56.5]} 51... b4 {[%clk 0:01:37]} 52. axb4 {[%clk 0:01:57.1]}
52... axb4 {[%clk 0:01:37.9]} 53. Be5 {[%clk 0:01:57.5]} 53... b3 {[%clk
0:01:38]} 54. Kc1 {[%clk 0:01:58.4]} 54... d2+ {[%clk 0:01:34.8]} 55. Kd1 {[%clk
0:01:58.2]} 55... Kd3 {[%clk 0:01:35.2]} 56. Bd4 {[%clk 0:01:56.7]} 56... Kxd4
{[%clk 0:01:34.9]} 57. g6 {[%clk 0:01:57.3]} 0-1

[Event "Late-Titled-Tuesday-Blitz-February-13-2024"]
[Site "Chess.com"]
[Date "2024.02.13"]
[Round "2"]
[White "a_kandil"]
[Black "DraningWaterHi"]
[Result "1-0"]
[WhiteElo "2488"]
[BlackElo "2207"]
[TimeControl "180+1"]
[EndTime "14:15:08 PST"]
[Termination "a_kandil won by resignation"]

1. e4 {[%clk 0:03:00.7]} 1... e5 {[%clk 0:02:55.9]} 2. Nf3 {[%clk 0:03:00.9]}
2... Nc6 {[%clk 0:02:52.4]} 3. Bb5 {[%clk 0:03:01.2]} 3... a6 {[%clk 0:02:42.8]}
4. Ba4 {[%clk 0:03:01.2]} 4... Nf6 {[%clk 0:02:42.1]} 5. O-O {[%clk 0:03:01]}
5... Be7 {[%clk 0:02:38.9]} 6. d3 {[%clk 0:03:00.9]} 6... b5 {[%clk 0:02:37.4]}
7. Bb3 {[%clk 0:03:01.5]} 7... O-O {[%clk 0:02:37.9]} 8. Re1 {[%clk 0:02:56.8]}
8... d6 {[%clk 0:02:34.6]} 9. h3 {[%clk 0:02:56.5]} 9... h6 {[%clk 0:02:32.5]}
10. a3 {[%clk 0:02:54.6]} 10... Nb8 {[%clk 0:02:27.3]} 11. Nc3 {[%clk
0:02:54.2]} 11... Nbd7 {[%clk 0:02:27.2]} 12. d4 {[%clk 0:02:49.3]} 12... Bb7
{[%clk 0:02:19.2]} 13. Ba2 {[%clk 0:02:35.7]} 13... c6 {[%clk 0:02:08.7]} 14.
Be3 {[%clk 0:02:10.2]} 14... Qc7 {[%clk 0:02:06.4]} 15. dxe5 {[%clk 0:02:00.1]}
15... dxe5 {[%clk 0:02:03.5]} 16. Nh4 {[%clk 0:02:00.3]} 16... Rfd8 {[%clk
0:02:01.1]} 17. Qf3 {[%clk 0:01:55.1]} 17... Bf8 {[%clk 0:01:56.4]} 18. Qg3
{[%clk 0:01:47.2]} 18... Nb6 {[%clk 0:01:43.3]} 19. Bxh6 {[%clk 0:01:42.1]}
19... Nc4 {[%clk 0:01:38.8]} 20. Bxc4 {[%clk 0:01:37]} 20... bxc4 {[%clk
0:01:39.7]} 21. Nf5 {[%clk 0:01:35.8]} 21... g6 {[%clk 0:01:38.9]} 22. Bxf8
{[%clk 0:01:34.9]} 22... Kxf8 {[%clk 0:01:39.3]} 23. Qg5 {[%clk 0:01:35.2]}
23... Ng8 {[%clk 0:01:32.1]} 24. Ne3 {[%clk 0:01:35.3]} 24... Rd4 {[%clk
0:01:31.5]} 25. Ng4 {[%clk 0:01:34.3]} 25... Rad8 {[%clk 0:01:30.3]} 26. Nxe5
{[%clk 0:01:21.7]} 26... Re8 {[%clk 0:01:08.6]} 27. Nf3 {[%clk 0:01:21]} 27...
Rdd8 {[%clk 0:01:07.7]} 28. e5 {[%clk 0:01:19.6]} 28... Re6 {[%clk 0:01:06.7]}
29. Rad1 {[%clk 0:01:17.9]} 29... c5 {[%clk 0:01:06.9]} 30. Rxd8+ {[%clk
0:01:17.6]} 30... Kg7 {[%clk 0:01:07.1]} 31. Rd6 {[%clk 0:01:14]} 1-0